Cogmind - Beta 13 @@@ ROGUE MODE // 2024.04.03 @ 14:43:09 Player: writers.room Result: Core destroyed Performance ------------- Evolutions (2) 1000 Regions Visited (4) 800 Robots Destroyed (10) 50 Value Destroyed (331) 331 Prototype IDs (0) 0 Alien Tech Used (0) 0 Bonus (200) 200 TOTAL SCORE: 2381 Bonus ------- Pacifist 200 Cogmind --------- Core Integrity 0/550 Matter 300/300 Energy 99/100 System Corruption 3% Temperature Cool (0) Movement Core (50) Location -8/Materials Parts ------- > --- POWER (2) -------- (None) > --- PROPULSION (4) --- (None) > --- UTILITY (3) ------ (None) > --- WEAPON (2) ------- (None) > --- INVENTORY (5) ---- Light Ion Engine Light Ion Engine Improved Ion Engine Mining Laser Peak State ------------ > --- POWER ------------ Light Ion Engine Light Nuclear Core > --- PROPULSION ------- Armored Treads Advanced Treads Advanced Treads Advanced Treads > --- UTILITY ---------- Improved Terrain Scanner Seismic Detector Improved Targeting Computer > --- WEAPON ----------- Katana > --- INVENTORY -------- Light Ion Engine Light Ion Engine Improved Ion Engine Mining Laser [Rating: 25] Favorites ----------- Power Light Nuclear Core Engine Light Ion Engine Power Core Light Nuclear Core Propulsion Advanced Treads Treads Advanced Treads Utility Improved Targeting Computer Device Improved Terrain Scanner Processor Improved Targeting Computer Weapon Improved Light Cannon Energy Gun Small Laser Ballistic Gun Heavy Assault Rifle Ballistic Cannon Improved Light Cannon Slashing Weapon Katana Build | -11 -10 -9 -9 -8 ------- Run | Yrd Mat Mat Min Mat Slots Evolved 4 | . . 2 . 2 Power 1 | . . . . 1 Propulsion 2 | . . 2 . . Utility 1 | . . . . 1 Weapon . | . . . . . Parts Attached 19 | . . 4 12 3 Power 2 | . . . 1 1 Engine 1 | . . . . 1 Core 1 | . . . 1 . Reactor . | . . . . . Propulsion 9 | . . 4 5 . Treads 9 | . . 4 5 . Leg . | . . . . . Wheel . | . . . . . Hover . | . . . . . Flight . | . . . . . Utility 4 | . . . 3 1 Device 2 | . . . 2 . Storage . | . . . . . Processor 2 | . . . 1 1 Hackware . | . . . . . Protection . | . . . . . Artifact . | . . . . . Weapon 4 | . . . 3 1 Energy Gun 1 | . . . 1 . Energy Cannon . | . . . . . Ballistic Gun 1 | . . . 1 . Ballistic Cannon 1 | . . . 1 . Launcher . | . . . . . Special Weapon . | . . . . . Impact Weapon . | . . . . . Slashing Weapon 1 | . . . . 1 Piercing Weapon . | . . . . . Special Melee Weapon . | . . . . . Unidentified Prototypes . | . . . . . Parts Lost 2 | . . . . 2 Power 1 | . . . . 1 Propulsion 1 | . . . . 1 Utility . | . . . . . Weapon . | . . . . . Highest Loss Streak 2 | . . . . 2 To Critical Strikes . | . . . . . Average Slot Usage (%) 53 | . . 38 61 54 Engine 1 | . . . . 5 Core 5 | . . . 7 6 Treads 34 | . . 38 40 24 Device 5 | . . . 4 13 Processor 3 | . . . 5 3 Ballistic Gun 1 | . . . 1 . Ballistic Cannon 1 | . . . 1 . Naked Turns 201 | . 71 23 38 69 Heaviest Build 12 | . . . 7 12 Greatest Support 86 | 3 3 82 86 86 Greatest Overweight (x) . | . . . . . Average Overweight (x) . | . . . . . Largest Inventory Capacity 5 | 5 5 5 5 5 Average Capacity 5 | 5 5 5 5 5 Most Carried 5 | . . 5 5 5 Average Carried 2 | . . 3 1 3 Final Capacity 5 | 5 5 5 5 5 Final Carried 5 | . . 5 4 4 Class Distribution -------------------- 85% | Mutant 14% | Scavenger-Mutant Dominant Class ---------------- Mutant | -10/Materials Mutant | -9/Materials Mutant | -9/Mines Scavenger-Mutant | -8/Materials Resources | -11 -10 -9 -9 -8 ----------- Run | Yrd Mat Mat Min Mat Matter Collected 254 | 50 . 20 174 10 Remotely . | . . . . . Salvage Created 211 | . . . 41 170 Parts 17 | . . 2 3 12 Haulers Intercepted . | . . . . . Recyclers Shooed . | . . . . . Parts Field Recycled . | . . . . . Retrieved Matter . | . . . . . Parts Self-Destructed . | . . . . . Prevented . | . . . . . Kills | -11 -10 -9 -9 -8 ------- Run | Yrd Mat Mat Min Mat Combat Hostiles Destroyed 12 | . . 3 5 4 Melee 12 | . . 3 5 4 Classes Destroyed 5 | . . 1 2 2 Swarmer 3 | . . 3 . . Grunt 5 | . . . 3 2 Duelist 1 | . . . . 1 Sentry 1 | . . . . 1 Assembled 2 | . . . 2 . Best Kill Streak 4 | . . 3 2 4 Combat Bots Only 4 | . . 3 2 4 Max Kills in Single Turn 1 | . . 1 1 1 Gunslinging . | . . . . . Exploded . | . . . . . Melee 1 | . . 1 1 1 Uniques/NPCs Destroyed . | . . . . . Combat | -11 -10 -9 -9 -8 -------- Run | Yrd Mat Mat Min Mat Hostile Shots Fired 177 | . 18 40 41 78 Missed 48 | . 4 11 14 19 Damage Taken 1813 | . 187 249 405 972 Core 867 | . 187 31 99 550 Absorbed by Shields . | . . . . . Core Remaining (%) 64 | 100 25 . 67 . Volleys Fired 2 | . . . 2 . Largest 2 | . . . 2 . Hottest 62 | . . . 62 . Shots Fired 3 | . . . 3 . Gun 2 | . . . 2 . Cannon 1 | . . . 1 . Launcher . | . . . . . Special . | . . . . . Kinetic 2 | . . . 2 . Thermal 1 | . . . 1 . Explosive . | . . . . . Electromagnetic . | . . . . . Robot Hit Streak 1 | . . . 1 . Robot Miss Streak 1 | . . . 1 . Penetration Max . | . . . . . Secondary Targets . | . . . . . Shots Hit Robots 9 | . . . 1 8 Core Hits 20 | . . 3 7 10 Critical Kills . | . . . . . Critical Parts Destroyed . | . . . . . Critical Strikes 1 | . . . . 1 Sever 1 | . . . . 1 Melee Attacks 11 | . . . . 11 Impact . | . . . . . Slashing 11 | . . . . 11 Piercing . | . . . . . Sneak Attacks . | . . . . . Combat Hostiles . | . . . . . Follow-up Attacks . | . . . . . Damage Inflicted 411 | . . 6 60 345 Guns . | . . . . . Cannons 24 | . . . 24 . Explosions . | . . . . . Melee 259 | . . . . 259 Ramming 128 | . . 6 36 86 Kinetic 24 | . . . 24 . Thermal . | . . . . . Explosive . | . . . . . Electromagnetic . | . . . . . Impact . | . . . . . Slashing 259 | . . . . 259 Piercing . | . . . . . Highest Corruption 3 | . . . . 3 Average Corruption 2 | . . . . 2 Corruption Purged . | . . . . . Corruption Blocked . | . . . . . Overload Shots . | . . . . . Overflow Damage . | . . . . . Projectiles . | . . . . . Explosions . | . . . . . Melee . | . . . . . Knockbacks . | . . . . . Impact . | . . . . . Kinetic . | . . . . . Secondary . | . . . . . Self-Inflicted Damage 34 | . . . . 34 Shots . | . . . . . Rammed 62 | . . 11 23 28 Targets Rammed 71 | . . 14 28 29 Kicked . | . . . . . Crushed 9 | . . 3 5 1 Highest Temperature 20 | . . . . 20 Average Temperature 9 | . . . . 9 Received Heat Transfer 882 | . 99 18 198 567 Siege Activations . | . . . . . Robots Corrupted . | . . . . . Combat Hostiles . | . . . . . Parts Fried . | . . . . . Impact Corruptions . | . . . . . Robots Melted . | . . . . . Combat Hostiles . | . . . . . Parts Melted . | . . . . . Heat Transferred . | . . . . . Parts Sabotaged . | . . . . . Parts Stolen . | . . . . . Parts Stripped . | . . . . . Power Chain Reactions . | . . . . . Alert | -11 -10 -9 -9 -8 ------- Run | Yrd Mat Mat Min Mat Peak Influence 145 | . 60 124 133 145 Initial 48 | . . 25 48 5 Average 51 | . 30 86 47 44 Maximum Alert Level . | . . . . . Low Security (%) 100 | 100 100 100 100 100 Level 1 . | . . . . . Level 2 . | . . . . . Level 3 . | . . . . . Level 4 . | . . . . . Level 5 . | . . . . . High Security . | . . . . . Max Security . | . . . . . Squads Dispatched 3 | . 1 . . 2 Investigation . | . . . . . Extermination . | . . . . . Reinforcement 3 | . 1 . . 2 Assault . | . . . . . Garrison . | . . . . . Intercept . | . . . . . Searches Triggered . | . . . . . Construction Impeded . | . . . . . Haulers Reinforced . | . . . . . Active Scanning Responses . | . . . . . Cargo Convoy Interrupts . | . . . . . Stealth | -11 -10 -9 -9 -8 --------- Run | Yrd Mat Mat Min Mat Distress Signals 1 | . . . . 1 Communications Jammed . | . . . . . Distress Signals . | . . . . . Times Spotted 38 | . 8 5 5 20 Peak Tracking Total 12 | . 4 4 3 12 Tactical Retreats 3 | . 1 . . 2 Traps | -11 -10 -9 -9 -8 ------- Run | Yrd Mat Mat Min Mat Traps Triggered 1 | . . . . 1 Indirectly . | . . . . . Trap Hack Attempts . | . . . . . Triggered . | . . . . . Disarmed . | . . . . . Reprogrammed . | . . . . . Reused . | . . . . . Traps Extracted . | . . . . . Installed . | . . . . . Triggered . | . . . . . Machines | -11 -10 -9 -9 -8 ---------- Run | Yrd Mat Mat Min Mat Machines Disabled . | . . . . . Max in Single Turn . | . . . . . Machines Repaired . | . . . . . Machines Dismantled . | . . . . . Machines Sabotaged . | . . . . . Overloaded Fab Kills . | . . . . . Hacking | -11 -10 -9 -9 -8 --------- Run | Yrd Mat Mat Min Mat Machines Accessed 1 | . . 1 . . Terminals 1 | . . 1 . . Fabricators . | . . . . . Repair Stations . | . . . . . Recycling Units . | . . . . . Scanalyzers . | . . . . . Garrison Access . | . . . . . Total Hacks 1 | . . 1 . . Successful 1 | . . 1 . . Failed . | . . . . . Catastrophic . | . . . . . Database Lockouts . | . . . . . Manual . | . . . . . Terminals 1 | . . 1 . . Fabricators . | . . . . . Repair Stations . | . . . . . Recycling Units . | . . . . . Scanalyzers . | . . . . . Garrison Access . | . . . . . Terminal Hacks 1 | . . 1 . . Hauler Manifests 1 | . . 1 . . Fabricator Hacks . | . . . . . Repair Station Hacks . | . . . . . Recycling Unit Hacks . | . . . . . Scanalyzer . | . . . . . Garrison Access Hacks . | . . . . . Unauthorized Hacks . | . . . . . Terminals . | . . . . . Fabricators . | . . . . . Repair Stations . | . . . . . Recycling Units . | . . . . . Scanalyzers . | . . . . . Garrison Access . | . . . . . Data Cores Recovered . | . . . . . Used . | . . . . . Hacking Detections . | . . . . . Full Trace Events . | . . . . . Feedback Events . | . . . . . Feedback Blocked . | . . . . . Robot Schematics Acquired . | . . . . . Robots Built . | . . . . . Authchips . | . . . . . Time . | . . . . . Total Robot Build Rating . | . . . . . Part Schematics Acquired . | . . . . . Parts Built . | . . . . . Authchips . | . . . . . Time . | . . . . . Total Part Build Rating . | . . . . . Parts Repaired . | . . . . . Time . | . . . . . Parts Recycled . | . . . . . Recycled Matter . | . . . . . Retrieved Matter . | . . . . . Retrieved Components . | . . . . . Parts Scanalyzed . | . . . . . Part Schematics Acquired . | . . . . . Parts Damaged . | . . . . . Bothacking | -11 -10 -9 -9 -8 ------------ Run | Yrd Mat Mat Min Mat Used RIF Installer . | . . . . . Robots Hacked . | . . . . . Non-combat . | . . . . . Combat . | . . . . . Robot Hacks Applied . | . . . . . Relay Couplers Released . | . . . . . Fabnet Peak Effective % . | . . . . . Robots Rewired . | . . . . . Allies Hacked . | . . . . . Hacks Repelled . | . . . . . Allies | -11 -10 -9 -9 -8 -------- Run | Yrd Mat Mat Min Mat Total Allies . | . . . . . Largest Group . | . . . . . Highest-Rated Group . | . . . . . Highest-Rated Ally . | . . . . . Total Orders . | . . . . . Ally Attacks . | . . . . . Total Damage . | . . . . . Kills . | . . . . . Allies Corrupted . | . . . . . Allies Melted . | . . . . . Intel | -11 -10 -9 -9 -8 ------- Run | Yrd Mat Mat Min Mat Robot Analysis Total . | . . . . . Derelict Logs Recovered 1 | . . . 1 . Drone Launches . | . . . . . Drone Recoveries . | . . . . . Exploration | -11 -10 -9 -9 -8 ------------- Run | Yrd Mat Mat Min Mat Turns Passed 1244 | 11 71 177 722 263 Spaces Moved 936 | 23 142 112 465 194 Core 396 | 23 142 35 101 95 Treads 540 | . . 77 364 99 Legs . | . . . . . Wheels . | . . . . . Hover . | . . . . . Flight . | . . . . . Fastest Speed 50 | 50 50 50 50 50 Average Speed 110 | 50 50 127 131 102 Slowest Speed 170 | 50 50 163 163 170 Overloaded Moves . | . . . . . Propulsion Burnouts . | . . . . . Robots Hopped . | . . . . . Cave-ins Triggered . | . . . . . Exploration Rate (%) 31 | 2 34 15 86 21 Regions Visited 4 Branch Regions 1 Pre-discovered Areas . | . . . . . Known Exits Taken . | . . . . . Unknown Exits Taken 4 | 1 1 1 1 . Scrap Searched 1 | . . . 1 . Spaces Dug . | . . . . . Terrain Destroyed . | . . . . . Melee . | . . . . . Projectile . | . . . . . AOE . | . . . . . Terrain Rammed . | . . . . . Walls Destroyed . | . . . . . Machines Disabled . | . . . . . Actions | -11 -10 -9 -9 -8 --------- Run | Yrd Mat Mat Min Mat Total 1098 | 22 141 137 558 240 Wait 26 | . . . 26 . Move 932 | 22 141 111 464 194 Hop . | . . . . . Pick Up 18 | . . 8 7 3 Fast Attach 5 | . . 1 4 . Attach 14 | . . 3 8 3 Detach . | . . . . . Swap . | . . . . . Drop 3 | . . . 2 1 Fire 2 | . . . 2 . Melee 11 | . . . . 11 Ram 22 | . . . . 22 Kick . | . . . . . Crush 48 | . . 14 28 6 Escape Stasis . | . . . . . Rewire 17 | . . . 17 . Trap . | . . . . . Miscellaneous . | . . . . . Route ------- -11/Scrapyard -10/Materials -9/Materials (discovered 2 exits: [*Min] / [*Sto]) -9/Mines -8/Materials History --------- Turn | Location | Event 3 | -11/Scrapyard | Discovered new exit (range 15) 12 | -11/Scrapyard | Entered Materials 68 | -10/Materials | Core integrity fell below 50% 79 | -10/Materials | Discovered new exit (range 8) 83 | -10/Materials | Entered another Materials area 83 | -9/Materials | Evolved 2 slots: Propulsion x2 189 | -9/Materials | Discovered new exit (range 14) 213 | -9/Materials | Discovered new exit (range 15) 260 | -9/Materials | Entered Mines 302 | -9/Mines | Build established: Mutant 436 | -9/Mines | Assembled infested the area 441 | -9/Mines | Assisted by a Guerilla fighting off Assembled 444 | -9/Mines | Released all parts (6) 449 | -9/Mines | Learned Materials security intel 896 | -9/Mines | Discovered new exit (range 8) 982 | -9/Mines | Entered Materials 982 | -8/Materials | Evolved 2 slots: Power x1, Utility x1 1176 | -8/Materials | Released all parts (5) 1216 | -8/Materials | Core integrity fell below 50% 1238 | -8/Materials | Core integrity fell below 20% 1245 | -8/Materials | Core destroyed Last Messages --------------- 01176_ Released Imp. Terrain Scanner. 01176_ Released Lgt. Nuclear Core. 01176_ Released Arm. Treads. 01195_ Slammed into U-05 Engineer. 01196_ U-05 Engineer sends out distress signal. 01197_ K-01 Serf collects debris. 01199_ Slammed into G-47 Trooper. 01202_ Critical hit (Burn: +37). 01202_ Slammed into G-47 Trooper. 01203_ K-01 Serf collects debris. 01204_ Slammed into G-47 Trooper. 01208_ Destabilizing: System corrupted (+2). 01209_ Slammed into G-47 Trooper. 01220_ Destabilizing: System corrupted (+1). 01220_ Critical hit (Burn: +37). 01222_ U-05 Engineer builds a Door. 01222_ U-05 Engineer destroyed. 01225_ K-01 Serf cleans the Electrolysis Chamber. 01242_ T-07 Excavator destroyed. 01245_ Slammed into W-25 Informer. Map ----- +----------------------------------------------------+ | ?????????????????????????????????????????????????? | | ?????????????????????????????????????????????????? | | ?????????????????????????????????????????????????? | | ?????????????????????????????????????????????????? | | ?????????????????????????????????????????????????? | | ?????????????????????????????????????????????????? | | ?????????????????????????????????????????????????? | | ?????????????????????????????????????????????????? | | ?????????????????????????????????????????????????? | | ?????????????????????????????????????????????????? | | ?????????????????????????????????????????????????? | | ?????????????????????????????????????????????????? | | ?????????????????????????????????????????????????? | | ?????????????????????????????????????????????????? | | ?????????????????????????????????????????????????? | | ?????????????????????????????????????????????????? | | ?????????????????????????????????????????????????? | | ?????????????????????????????????????????????????? | | ????????????????????????###??????????????????????? | | ????????????????????????# ??????????????????????? | | ????????????????????????# ??????????????????????? | | #???????????????????????# ??????????????????????? | | ????????????????????????# #??????????????????????? | | #???????????????????????# #??????????????????????? | | ?#??????????????????????#w#??????????????????????? | | ?#??????????????????????#@#??????????????????????? | | ????????????????????????# #??????????????????????? | | ????????????????????????# #??????????????????????? | | ????????????????????????# #???????####???????????? | | ?#?????????#????????????# #??????? #???????????? | | ?#????????## ??????????# #??????? #???????????? | | #######???# #########g#?????"" #???????????? | | ? % g#??""""" #???????????? | | ??? T | #?#""""" #???????????? | | ? ss#?#""""" ! #???????????? | | +#####????# ####### #?#""""" #???????????? | | ???????????#??????????# sa#?#""""" #???????????? | | ??????????????????????# #?# #???????????? | | ???? ?????????????????# #######+#######????????? | | ??????????????????????# #????????? | | ? ????"???????????????# #????????? | | ??????????????????????# #????????? | | ?????#????????????????############### #????????? | | ????????????????????????????????????# ########## | | ????????#???????????????????????????# | | ???#?????????????????! ########### | | ###???#????????????? ########## | | #?????????????????? #????????? | | ! #?#?????###???????? #????????? | | ! #?#*?? ! ???????? ##########+#####???????? | +----------------------------------------------------+ Best States ------------- Heat Dissipation 31 Energy Generation 19 Energy Capacity 185 Matter Stores 300 Matter Capacity 300 Sight Range 16 Terrain Scan Range 16 Terrain Scan Density 10 Evasion (%) 50 Targeting Accuracy 6 Recoil Reduction 4 Item Schematics ----------------- None Robot Schematics ------------------ None Fabricated ------------ Nothing Alien Tech Used ----------------- None Achievements -------------- None Challenges ------------ None Game ------ Seed HeatHackingFlightbrick Manual? 0 Play Time 00:10:07 Cumulative 30.5 hours Start 2024.04.03 @ 14:35:09 End 2024.04.03 @ 14:43:09 Sessions 1 Manual Loads 0 Difficulty Rogue Special Mode None Game No. 74 Rogue 34 Adventurer 14 Explorer 26 Win Type - Total 0 Types 0/0/0/0/0/0/0/0/0 Lore% 21 Gallery% 30 Achievement% 26 Wizard Run 0 Options --------- Layout 0 ASCII 0 Keyboard 0 Movement Mouse Keybinds 0 Fullscreen 1 Font 18/SmallcapsGlow Map View 76x50 Zoom Use 0% Tactical HUD 1 Map Filters NONE Filters NONE Steam 1 RUN: 48244c51-28d2-4af8-afc8-9d503e118d61